fUST/lending_fUST_20250113
["ID","MTS","AMOUNT","RATE_DAILY","PERIOD"]
[348672126,1736706635160,-500.0,0.00019776,3]
[348672128,1736706635170,-500.0,0.00019776,3]
[348672129,1736706635179,-426.0551746,0.00019776,3]
[348672131,1736706635193,-500.0,0.00019776,3]
[348672133,1736706635202,-502.15522661,0.00019776,3]
[348672135,1736706635212,-500.75345137,0.00019776,3]
[348672137,1736706635221,-500.0,0.00019776,3]
[348672139,1736706635231,-500.0,0.00019776,3]
[348672141,1736706635240,-501.1881899,0.00019776,3]
[348672143,1736706635251,-500.28079999,0.00019776,3]
[348672145,1736706635260,-501.03564074,0.00019776,3]
[348672147,1736706635269,-500.0,0.00019776,3]
[348672149,1736706635280,-500.91778796,0.00019776,3]
[348672151,1736706635289,-500.0,0.00019776,3]
[348672153,1736706635299,-500.57339852,0.00019776,3]
[348672155,1736706635310,-501.27204527,0.00019776,3]
[348672156,1736706635319,-502.44733095,0.00019776,3]
[348672157,1736706635329,-501.60253288,0.00019776,3]
[348672158,1736706635338,-500.0,0.00019776,3]
[348672159,1736706635348,-501.77789869,0.00019776,3]
[348672160,1736706635358,-500.0,0.00019776,3]
[348672161,1736706635368,-501.10151777,0.00019776,3]
[348672162,1736706635377,-500.0,0.00019776,3]
[348672163,1736706635386,-500.0,0.00019776,3]
[348672164,1736706635396,-505.40902448,0.00019776,3]
[348672165,1736706635405,-500.0,0.00019776,3]
[348672166,1736706635414,-500.0,0.00019776,3]
[348672167,1736706635424,-500.0,0.00019776,3]
[348672168,1736706635434,-500.0,0.00019776,3]
[348672169,1736706635443,-501.46445484,0.00019776,3]
[348672170,1736706635453,-500.0,0.00019776,3]
[348672171,1736706635463,-501.32361236,0.00019776,3]
[348672172,1736706635474,-502.43127271,0.00019776,3]
[348672173,1736706635483,-500.0,0.00019776,3]
[348672174,1736706635492,-500.90341092,0.00019776,3]
[348672175,1736706635502,-501.06858975,0.00019776,3]
[348672176,1736706635512,-501.03206053,0.00019776,3]
[348672177,1736706635522,-501.49304894,0.00019776,3]
[348672178,1736706635531,-501.61887366,0.00019776,3]
[348672179,1736706635541,-500.0,0.00019776,3]
[348672180,1736706635550,-501.72253438,0.00019776,3]
[348672181,1736706635559,-500.0,0.00019776,3]
[348672182,1736706635569,-500.0,0.00019776,3]
[348672183,1736706635579,-419.664101,0.00019776,3]
[348672184,1736706635590,-313.6171515,0.00019776,3]
[348672185,1736706635599,-500.0,0.00019776,3]
[348672186,1736706635608,-500.0,0.00019776,3]
[348672187,1736706635617,-509.0451226,0.00019776,3]
[348672188,1736706635628,-500.0,0.00019776,2]
[348672189,1736706635637,-500.0,0.00019776,3]
[348672190,1736706635646,-502.35052806,0.00019776,3]
[348672191,1736706635655,-513.97212367,0.00019776,3]
[348672192,1736706635666,-694.42,0.00019776,3]
[348672193,1736706635676,-500.0,0.00019776,3]
[348672194,1736706635686,-505.41595503,0.00019776,3]
[348672195,1736706635695,-500.0,0.00019776,3]
[348672196,1736706635705,-518.26585458,0.00019776,3]
[348672197,1736706635715,-500.0,0.00019776,3]
[348672198,1736706635726,-503.51754126,0.00019776,3]
[348672199,1736706635736,-500.0,0.00019776,3]
[348672200,1736706635746,-500.0,0.00019776,7]
[348672201,1736706635755,-500.0,0.00019776,3]
[348672202,1736706635765,-509.0580298,0.00019776,3]
[348672203,1736706635774,-500.0,0.00019776,3]
[348672204,1736706635783,-500.0,0.00019776,2]
[348672205,1736706635793,-500.0,0.00019776,3]
[348672206,1736706635803,-500.0,0.00019776,3]
[348672207,1736706635812,-500.0,0.00019776,3]
[348672208,1736706635821,-500.0,0.00019776,3]
[348672209,1736706635830,-515.75338214,0.00019776,3]
[348672210,1736706635840,-500.0,0.00019776,3]
[348672211,1736706635849,-500.0,0.00019776,3]
[348672212,1736706635858,-500.0,0.00019776,3]
[348672213,1736706635869,-500.0,0.00019776,3]
[348672214,1736706635878,-500.0,0.00019776,3]
[348672215,1736706635887,-500.0,0.00019776,3]
[348672216,1736706635896,-500.0,0.00019776,3]
[348672217,1736706635906,-500.0,0.00019776,3]
[348672218,1736706635916,-504.52788573,0.00019776,3]
[348672219,1736706635926,-500.0,0.00019776,3]
[348672220,1736706635937,-500.0,0.00019776,3]
[348672221,1736706635946,-500.0,0.00019776,3]
[348672222,1736706635956,-500.0,0.00019776,3]
[348672223,1736706635965,-537.44392955,0.00019776,3]
[348672224,1736706635975,-500.0,0.00019776,3]
[348672225,1736706635984,-501.05294508,0.00019776,2]
[348672226,1736706635994,-500.0,0.00019776,3]
[348672227,1736706636003,-500.0,0.00019776,3]
[348672228,1736706636012,-500.0,0.00019776,3]
[348672229,1736706636022,-500.0,0.00019776,3]
[348672230,1736706636031,-632.78,0.00019776,3]
[348672231,1736706636040,-500.0,0.00019776,3]
[348672232,1736706636050,-500.0,0.00019776,3]
[348672233,1736706636059,-500.0,0.00019776,3]
[348672234,1736706636069,-500.0,0.00019776,3]
[348672235,1736706636080,-500.0,0.00019776,3]
[348672236,1736706636089,-500.0,0.00019776,3]
[348672237,1736706636098,-500.0,0.00019776,3]
[348672238,1736706636108,-500.0,0.00019776,3]
[348672239,1736706636120,-526.74,0.00019776,3]
[348672240,1736706636129,-500.0,0.00019776,3]
[348672241,1736706636139,-500.0,0.00019776,3]
[348672242,1736706636150,-500.0,0.00019776,3]
[348672243,1736706636161,-500.0,0.00019776,3]
[348672244,1736706636171,-500.0,0.00019776,3]
[348672245,1736706636180,-500.0,0.00019776,3]
[348672246,1736706636191,-500.0,0.00019776,3]
[348672247,1736706636205,-500.0,0.00019776,3]
[348672248,1736706636214,-500.0,0.00019776,3]
[348672249,1736706636224,-500.0,0.00019776,3]
[348672250,1736706636234,-500.0,0.00019776,3]
[348672251,1736706636244,-151.34486279,0.00019776,3]
[348672252,1736706636254,-500.0,0.00019776,3]
[348672253,1736706636263,-500.0,0.00019776,3]
[348672254,1736706636273,-500.0,0.00019776,3]
[348672255,1736706636283,-500.0,0.00019776,3]
[348672256,1736706636292,-498.94246959,0.00019777,3]
[348672257,1736706636302,-510.50642445,0.00019777,3]
[348672258,1736706636312,-500.0,0.00019777,3]
[348672259,1736706636322,-500.0,0.00019777,3]
[348672260,1736706636332,-500.0,0.00019777,3]
[348672261,1736706636342,-500.0,0.00019777,3]
[348672262,1736706636352,-500.0,0.00019777,3]
[348672263,1736706636362,-500.0,0.00019777,3]
[348672264,1736706636372,-500.0,0.00019777,3]
[348672265,1736706636383,-500.0,0.00019812,2]
[348672266,1736706636393,-294.40463859,0.00019812,2]
[348672267,1736706636402,-500.0,0.00019812,2]
[348672268,1736706636412,-500.0,0.00019999,3]
[348672269,1736706636421,-500.0,0.00019999,3]
[348672270,1736706636431,-885.06,0.00019999,3]
[348672271,1736706636441,-948.67,0.0002,2]
[348672272,1736706636451,-300.0,0.0002,8]
[348672273,1736706636460,-500.0,0.0002,3]
[348672274,1736706636470,-500.0,0.0002,2]
[348672275,1736706636479,-500.0,0.0002,3]
[348672276,1736706636489,-500.0,0.0002,3]
[348672277,1736706636498,-500.0,0.0002,3]
[348672278,1736706636507,-1267.66,0.0002,3]
[348672279,1736706636517,-500.0,0.0002,3]
[348672280,1736706636527,-3546.22,0.0002,3]
[348672281,1736706636536,-500.0,0.0002,3]
[348672282,1736706636545,-482.01733646,0.0002005,3]
[348672283,1736706636555,-500.0,0.0002005,3]
[348672284,1736706636564,-500.0,0.0002005,2]
[348672285,1736706636574,-694.42,0.0002005,3]
[348672286,1736706636584,-500.0,0.0002005,3]
[348672287,1736706636593,-500.0,0.0002005,3]
[348672288,1736706636604,-500.0,0.0002005,2]
[348672289,1736706636613,-500.0,0.0002005,3]
[348672290,1736706636624,-500.0,0.0002005,3]
[348672291,1736706636634,-500.0,0.0002005,3]
[348672292,1736706636643,-500.0,0.0002005,3]
[348672293,1736706636653,-498.37724545,0.00020051,3]
[348672294,1736706636663,-500.0,0.00020051,3]
[348672295,1736706636672,-420.0,0.00020263,2]
[348672296,1736706636681,-530.77,0.00020273,3]
[348672297,1736706636691,-500.0,0.00020273,2]
[348672298,1736706636701,-500.0,0.00020273,3]
[348672299,1736706636713,-500.0,0.00020273,3]
[348672300,1736706636723,-500.0,0.00020273,3]
[348672301,1736706636733,-500.0,0.00020273,3]
[348672302,1736706636742,-1267.66,0.00020273,3]
[348672303,1736706636752,-3546.22,0.00020273,3]
[348672304,1736706636761,-500.0,0.00020273,3]
[348672305,1736706636771,-885.06,0.00020273,3]
[348672306,1736706636780,-502.1029134,0.00020321,2]
[348672307,1736706636789,-500.0,0.00020324,3]
[348672308,1736706636799,-500.0,0.00020324,2]
[348672309,1736706636808,-694.42,0.00020324,3]
[348672310,1736706636818,-500.0,0.00020324,3]
[348672311,1736706636827,-500.0,0.00020324,3]
[348672312,1736706636837,-500.0,0.00020324,2]
[348672313,1736706636846,-500.0,0.00020324,3]
[348672314,1736706636855,-724.61,0.00020325,3]
[348672315,1736706636866,-500.0,0.00020325,3]
[348672316,1736706636875,-500.0,0.0002036,2]
[348672317,1736706636885,-1008.82702524,0.0002036,2]
[348672318,1736706636895,-400.0,0.00020447,2]
[348672319,1736706636904,-500.0,0.00020547,2]
[348672320,1736706636914,-500.0,0.00020547,3]
[348672321,1736706636924,-500.0,0.00020547,3]
[348672322,1736706636934,-522.76064249,0.00020547,3]
[348672323,1736706636943,-1267.66,0.00020547,3]
[348672324,1736706636952,-3546.22,0.00020547,3]
[348672325,1736706636962,-387.93792108,0.00020547,3]
[348672326,1736706636972,-885.06,0.00020547,3]
[348672327,1736706636981,-500.0,0.00020598,2]
[348672328,1736706636991,-694.42,0.00020598,3]
[348672329,1736706637000,-500.0,0.00020598,2]
[348672330,1736706637010,-724.61,0.00020599,3]
[348672331,1736706637020,-500.0,0.00020599,3]
[348672332,1736706637029,-500.0,0.00020821,2]
[348672333,1736706637038,-500.0,0.00020821,3]
[348672334,1736706637048,-500.0,0.00020821,3]
[348672335,1736706637058,-1267.66,0.00020821,3]
[348672336,1736706637154,-3546.22,0.00020821,3]
[348672337,1736706637164,-885.06,0.00020821,3]
[348672338,1736706637174,-500.0,0.00020872,2]
[348672339,1736706637184,-694.42,0.00020872,3]
[348672340,1736706637197,-500.0,0.00020872,2]
[348672341,1736706637207,-151.0,0.00020872,2]
[348672342,1736706637216,-151.0,0.00020872,2]
[348672343,1736706637227,-394.781614,0.00020872,2]
[348672344,1736706637236,-394.781614,0.00020872,2]
[348672345,1736706637245,-151.0,0.00020872,2]
[348672346,1736706637255,-724.61,0.00020873,3]
[348672347,1736706637265,-500.0,0.00020873,3]
[348672348,1736706637275,-151.0,0.00020873,2]
[348672349,1736706637285,-237.55886171,0.00021,2]
[348672350,1736706637294,-394.0,0.00021063,2]
[348672351,1736706637304,-500.0,0.00021091,3]
[348672352,1736706637315,-500.0,0.00021095,2]
[348672353,1736706637325,-500.0,0.00021095,3]
[348672354,1736706637334,-500.0,0.00021095,3]
[348672355,1736706637344,-1267.66,0.00021095,3]
[348672356,1736706637354,-3546.22,0.00021095,3]
[348672357,1736706637364,-885.06,0.00021095,3]
[348672358,1736706637374,-500.0,0.00021146,2]
[348672359,1736706637384,-500.0,0.00021146,2]
[348672360,1736706637396,-724.61,0.00021147,3]
[348672361,1736706637405,-500.0,0.00021147,3]
[348672362,1736706637415,-500.0,0.00021369,2]
[348672363,1736706637425,-500.0,0.00021369,3]
[348672364,1736706637434,-500.0,0.00021369,3]
[348672365,1736706637445,-1267.66,0.00021369,3]
[348672366,1736706637456,-3546.22,0.00021369,3]
[348672367,1736706637466,-885.06,0.00021369,3]
[348672368,1736706637476,-151.0,0.00021409,2]
[348672369,1736706637485,-151.0,0.00021409,2]
[348672370,1736706637495,-1200.0,0.00021409,2]
[348672371,1736706637504,-500.0,0.0002142,2]
[348672372,1736706637513,-300.0,0.000215,9]
[348672373,1736706637523,-500.0,0.00021599,3]
[348672374,1736706637533,-204.060675,0.00021643,2]
[348672375,1736706637545,-151.0,0.00021643,2]
[348672376,1736706637555,-500.0,0.00021643,2]
[348672377,1736706637564,-500.0,0.00021643,3]
[348672378,1736706637573,-500.0,0.00021643,3]
[348672379,1736706637583,-1267.66,0.00021643,3]
[348672380,1736706637592,-3546.22,0.00021643,3]
[348672381,1736706637601,-885.06,0.00021643,3]
[348672382,1736706637611,-640.18,0.00021694,2]
[348672383,1736706637620,-500.0,0.00021917,2]
[348672384,1736706637629,-500.0,0.00021917,3]
[348672385,1736706637638,-500.0,0.00021917,3]
[348672386,1736706637647,-1267.66,0.00021917,3]
[348672387,1736706637656,-567.01953824,0.00021917,3]
[348672388,1736706637722,-548.539763,0.00021917,3]
[348672389,1736706637734,-1934.0,0.00021917,3]
[348672426,1736706640907,-500.0,0.00019452,3]
[348672427,1736706640917,-496.66069876,0.00021917,3]
[348672428,1736706640926,-669.37535946,0.00021917,3]
[348672429,1736706640994,-215.68464054,0.00021917,3]
[348672430,1736706641004,-144.65,0.00022,2]
[348672431,1736706641015,-151.0,0.00022,2]
[348672432,1736706641024,-162.0,0.00022,2]
[348672433,1736706641034,-150.0,0.00022,2]
[348672434,1736706641044,-587.0,0.00022096,2]
[348672435,1736706641054,-2500.0,0.00022138,2]
[348672436,1736706641064,-2500.0,0.00022147,2]
[348672437,1736706641073,-2500.0,0.00022156,2]
[348672438,1736706641083,-2500.0,0.00022165,2]
[348672439,1736706641092,-2500.0,0.00022173,2]
[348672440,1736706641101,-2500.0,0.00022182,2]
[348672441,1736706641111,-2500.0,0.00022191,2]
[348672442,1736706641120,-151.0,0.00022191,7]
[348672443,1736706641133,-500.0,0.00022191,2]
[348672444,1736706641143,-500.0,0.00022191,3]
[348672445,1736706641152,-500.0,0.00022191,3]
[348672446,1736706641162,-1267.66,0.00022191,3]
[348672447,1736706641171,-3546.22,0.00022191,3]
[348672448,1736706641180,-885.06,0.00022191,3]
[348672449,1736706641193,-358.0,0.00022192,2]
[348672450,1736706641205,-151.0,0.00022242,7]
[348672451,1736706641215,-151.0,0.00022242,7]
[348672452,1736706641226,-394.781614,0.00022242,2]
[348672453,1736706641236,-394.781614,0.00022242,2]
[348672454,1736706641246,-151.0,0.00022242,7]
[348672455,1736706641257,-500.0,0.00022364,3]
[348672456,1736706641267,-500.0,0.00022465,2]
[348672457,1736706641277,-500.0,0.00022465,3]
[348672458,1736706641287,-500.0,0.00022465,3]
[348672459,1736706641296,-1267.66,0.00022465,3]
[348672460,1736706641306,-3546.22,0.00022465,3]
[348672461,1736706641316,-885.06,0.00022465,3]
[348672462,1736706641325,-151.0,0.00022516,7]
[348672463,1736706641334,-590.791,0.0002252,2]
[348672464,1736706641344,-500.0,0.00022739,2]
[348672465,1736706641353,-500.0,0.00022739,3]
[348672466,1736706641362,-500.0,0.00022739,3]
[348672467,1736706641371,-1267.66,0.00022739,3]
[348672468,1736706641384,-3546.22,0.00022739,3]
[348672469,1736706641393,-885.06,0.00022739,3]
[348672470,1736706641403,-151.0,0.0002279,7]
[348672471,1736706641412,-151.0,0.0002279,7]
[348672472,1736706641421,-160.0,0.00022799,2]
[348672473,1736706641432,-150.0,0.000228,2]
[348672474,1736706641441,-160.0,0.00022868,2]
[348672475,1736706641450,-160.0,0.00022869,2]
[348672476,1736706641459,-556.62664224,0.0002287,14]
[348672477,1736706641468,-500.0,0.00022999,3]
[348672478,1736706641478,-168.3439625,0.00022999,2]
[348672479,1736706641488,-7438.69753278,0.00023,3]
[348672480,1736706641497,-7438.69753278,0.00023,2]
[348672481,1736706641507,-7438.69753278,0.00023,2]
[348672482,1736706641516,-2372.33426046,0.00023,2]
[348672483,1736706641525,-1182.04282848,0.00023,2]
[348672528,1736706644044,-6256.6547043,0.00023,2]
[348672530,1736706644053,-300.0,0.00023,10]
[348672532,1736706644063,-151.0,0.00023,7]
[348672534,1736706644071,-2194.53711795,0.00023,3]
[348672536,1736706644082,-500.0,0.00023,2]
[348672538,1736706644092,-500.0,0.00023,2]
[348672540,1736706644102,-500.0,0.00023,2]
[348672542,1736706644111,-500.0,0.00023,2]
[348672544,1736706644121,-500.0,0.00023,2]
[348672547,1736706644131,-500.0,0.00023,2]
[348672549,1736706644141,-500.0,0.00023,2]
[348672551,1736706644150,-500.0,0.00023,2]
[348672553,1736706644160,-500.0,0.00023,2]
[348672555,1736706644169,-500.0,0.00023,2]
[348672557,1736706644178,-500.0,0.00023,2]
[348672559,1736706644188,-500.0,0.00023,2]
[348672560,1736706644199,-500.0,0.00023,2]
[348672562,1736706644209,-500.0,0.00023,2]
[348672564,1736706644219,-500.0,0.00023,2]
[348672567,1736706644228,-500.0,0.00023,2]
[348672569,1736706644242,-500.0,0.00023,2]
[348672571,1736706644251,-578.105522,0.00023,2]
[348672573,1736706644260,-151.0,0.00023,7]
[348672574,1736706644270,-394.781614,0.00023,2]
[348672577,1736706644280,-394.781614,0.00023,2]
[348672579,1736706644290,-220.38433,0.00023,7]
[348672580,1736706644299,-200.0,0.00023,2]
[348672582,1736706644308,-500.0,0.00023013,2]
[348672584,1736706644317,-500.0,0.00023013,3]
[348672586,1736706644327,-500.0,0.00023013,3]
[348672588,1736706644337,-1267.66,0.00023013,3]
[348672590,1736706644346,-3546.22,0.00023013,3]
[348672592,1736706644355,-885.06,0.00023013,3]
[348672595,1736706644366,-358.0,0.00023014,2]
[348672597,1736706644378,-162.0,0.00023014,2]
[348672599,1736706644388,-151.0,0.00023064,7]
[348672601,1736706644397,-502.87359446,0.00023171,2]
[348672603,1736706644407,-500.0,0.00023171,2]
[348672605,1736706644416,-3000.0,0.00023183,2]
[348672607,1736706644425,-500.0,0.00023287,2]
[348672609,1736706644435,-500.0,0.00023287,3]
[348672611,1736706644445,-500.0,0.00023287,3]
[348672613,1736706644454,-1267.66,0.00023287,3]
[348672614,1736706644464,-3546.22,0.00023287,3]
[348672615,1736706644473,-885.06,0.00023287,3]
[348672616,1736706644482,-8911.78753354,0.000233,5]
[348672617,1736706644491,-500.0,0.00023338,3]
[348672618,1736706644500,-151.0,0.00023338,7]
[348672619,1736706644510,-151.0,0.00023338,7]
[348672620,1736706644519,-151.0,0.00023338,7]
[348672621,1736706644529,-22530.47014231,0.00023377,2]
[348672622,1736706644538,-1000.0,0.00023443,2]
[348672623,1736706644548,-175.38,0.000235,31]
[348672624,1736706644558,-151.0,0.00023561,7]
[348672625,1736706644567,-151.0,0.00023561,7]
[348672626,1736706644577,-500.0,0.00023561,2]
[348672627,1736706644586,-500.0,0.00023561,3]
[348672628,1736706644596,-500.0,0.00023561,3]
[348672629,1736706644605,-1267.66,0.00023561,3]
[348672630,1736706644615,-3546.22,0.00023561,3]
[348672631,1736706644624,-885.06,0.00023561,3]
[348672632,1736706644634,-2000.0,0.000236,2]
[348672633,1736706644643,-150.0,0.000236,2]
[348672634,1736706644653,-151.0,0.00023612,7]
[348672635,1736706644662,-192.978004,0.00023612,7]
[348672636,1736706644672,-203.8562354,0.00023618,2]
[348672638,1736706644681,-163.59718528,0.00023639,2]
[348672640,1736706644691,-1000.0,0.00023693,2]
[348672642,1736706644700,-188.0,0.000237,2]
[348672644,1736706644710,-151.0,0.00023708,7]
[348672646,1736706644719,-151.0,0.00023708,7]
[348672649,1736706644729,-231.303718,0.00023708,7]
[348672651,1736706644738,-151.0,0.00023708,7]
[348672654,1736706644747,-151.0,0.00023708,7]
[348672657,1736706644757,-151.0,0.00023708,7]
[348672660,1736706644766,-151.0,0.00023708,7]
[348672663,1736706644776,-151.0,0.00023708,7]
[348672666,1736706644785,-151.0,0.00023708,7]
[348672669,1736706644795,-151.0,0.0002371,2]
[348672672,1736706644805,-500.0,0.00023712,3]
[348672675,1736706644814,-500.0,0.00023712,3]
[348672678,1736706644823,-500.0,0.00023712,3]
[348672680,1736706644833,-500.0,0.00023712,3]
[348672682,1736706644843,-500.0,0.00023712,3]
[348672685,1736706644852,-325.94,0.00023712,3]
[348672687,1736706644862,-151.0,0.00023713,7]
[348672689,1736706644871,-151.0,0.00023713,7]
[348672691,1736706644881,-159.095102,0.00023713,7]
[348672692,1736706644890,-151.0,0.00023713,7]
[348672695,1736706644900,-151.0,0.00023713,7]
[348672697,1736706644909,-151.0,0.00023713,7]
[348672699,1736706644918,-151.0,0.00023713,7]
[348672701,1736706644927,-151.0,0.00023713,7]
[348672703,1736706644937,-151.0,0.00023713,7]
[348672705,1736706644946,-151.0,0.00023713,7]
[348672707,1736706644956,-151.0,0.00023713,7]
[348672709,1736706644965,-151.0,0.00023713,7]
[348672711,1736706644974,-151.0,0.00023713,7]
[348672713,1736706644983,-151.0,0.00023713,7]
[348672715,1736706644993,-196.680328,0.00023713,7]
[348672716,1736706645003,-150.18,0.00023717,7]
[348672719,1736706645012,-150.18,0.00023717,7]
[348672721,1736706645022,-80144.89456329,0.00023718,10]
[348672977,1736706751158,400.0,0.00013973,2]
[348673013,1736707664134,400.0,0.00013973,2]
[348673072,1736707832100,-1794.87776873,0.000189,2]
[348673074,1736707832110,-364.9377508,0.00019173,2]
[348673076,1736707832118,-300.0,0.00019176,2]
[348673078,1736707832128,-478.57644387,0.00019177,2]
[348673080,1736707832137,-500.0,0.00019177,2]
[348673082,1736707832146,-500.0,0.00019177,2]
[348673083,1736707832155,-500.0,0.00019177,2]
[348673086,1736707832174,-500.0,0.00019177,2]
[348673089,1736707832186,-500.0,0.00019177,2]
[348673091,1736707832195,-500.0,0.00019177,2]
[348673093,1736707832206,-368.32827935,0.00019177,2]
[348673095,1736707832216,-500.0,0.00019177,2]
[348673097,1736707832226,-500.0,0.00019177,2]
[348673099,1736707832236,-464.14760093,0.00019177,2]
[348673101,1736707832249,-35.85239907,0.00019177,2]
[348673103,1736707832259,-500.0,0.00019177,2]
[348673105,1736707832268,-500.0,0.00019177,2]
[348673107,1736707832279,-500.0,0.00019177,2]
[348673110,1736707832288,-500.0,0.00019177,2]
[348673112,1736707832298,-110.54821328,0.00019177,2]
[348673114,1736707832310,-389.45178672,0.00019177,2]
[348673116,1736707832320,-500.0,0.00019177,2]
[348673118,1736707832329,-500.0,0.00019177,2]
[348673120,1736707832339,-500.0,0.00019177,2]
[348673122,1736707832348,-500.0,0.00019177,2]
[348673124,1736707832358,-500.0,0.00019177,2]
[348673126,1736707832367,-182.08449042,0.00019177,2]
[348673128,1736707832377,-500.0,0.00019177,2]
[348673130,1736707832387,-500.0,0.00019178,2]
[348673132,1736707832396,-501.05050117,0.00019178,2]
[348673134,1736707832406,-501.25472959,0.00019178,2]
[348673136,1736707832415,-118.94310266,0.00019178,2]
[348673139,1736707832428,-381.80338659,0.00019178,2]
[348673141,1736707832437,-500.57317291,0.00019178,2]
[348673143,1736707832447,-504.52425072,0.00019178,2]
[348673145,1736707832458,-501.01424314,0.00019178,2]
[348673147,1736707832467,-94.0361001,0.00019178,2]
[348673149,1736707832480,-405.9638999,0.00019178,2]
[348673151,1736707832490,-352.24755768,0.00019178,2]
[348673153,1736707832499,-511.66472479,0.00019178,2]
[348673155,1736707832509,-500.0,0.00019178,2]
[348673157,1736707832519,-500.0,0.00019178,2]
[348673159,1736707832528,-500.0,0.00019178,2]
[348673161,1736707832538,-500.0,0.00019178,2]
[348673163,1736707832548,-500.0,0.00019178,2]
[348673165,1736707832557,-508.90247428,0.00019178,2]
[348673167,1736707832567,-500.0,0.00019178,2]
[348673169,1736707832576,-500.0,0.00019178,2]
[348673171,1736707832586,-500.0,0.00019178,2]
[348673173,1736707832595,-500.0,0.00019178,2]
[348673175,1736707832605,-500.0,0.00019178,2]
[348673177,1736707832615,-500.0,0.00019178,2]
[348673179,1736707832624,-500.0,0.00019178,2]
[348673181,1736707832634,-500.0,0.00019178,2]
[348673183,1736707832643,-500.0,0.00019178,2]
[348673185,1736707832655,-500.0,0.00019178,2]
[348673187,1736707832666,-502.98895973,0.00019178,2]
[348673189,1736707832676,-500.0,0.00019178,2]
[348673191,1736707832685,-502.32278179,0.00019178,2]
[348673193,1736707832695,-500.0,0.00019178,2]
[348673195,1736707832711,-500.0,0.00019178,2]
[348673198,1736707832720,-500.0,0.00019178,2]
[348673200,1736707832730,-500.0,0.00019178,2]
[348673201,1736707832740,-500.0,0.00019178,2]
[348673203,1736707832751,-500.0,0.00019178,2]
[348673205,1736707832761,-500.0,0.00019178,2]
[348673207,1736707832770,-500.0,0.00019178,2]
[348673209,1736707832780,-500.0,0.00019178,2]
[348673211,1736707832789,-611.09,0.00019178,7]
[348673213,1736707832799,-500.0,0.00019178,2]
[348673215,1736707832809,-500.0,0.00019178,2]
[348673217,1736707832818,-500.0,0.00019178,2]
[348673219,1736707832828,-500.0,0.00019178,2]
[348673221,1736707832837,-500.0,0.00019178,2]
[348673223,1736707832847,-500.0,0.00019178,2]
[348673225,1736707832856,-500.0,0.00019178,2]
[348673227,1736707832866,-13.72781967,0.00019178,2]
[348673231,1736707832887,-486.27218033,0.00019178,2]
[348673233,1736707832897,-280.22213498,0.00019178,2]
[348673235,1736707832907,-233.21235389,0.00019178,2]
[348673237,1736707832918,-266.78764611,0.00019178,2]
[348673239,1736707832928,-500.0,0.00019178,2]
[348673241,1736707832938,-500.0,0.00019178,2]
[348673243,1736707832948,-500.0,0.00019178,2]
[348673245,1736707832960,-548.45545257,0.00019178,2]
[348673247,1736707832970,-500.0,0.00019178,2]
[348673249,1736707832981,-500.0,0.00019178,2]